[Event "GER-ch Youth-U18w 2022"]
[Site "Willingen"]
[Date "2022.06.07"]
[Round "4.8"]
[White "Basovskiy, Jana"]
[Black "Wilmink, Anna"]
[Result "1-0"]
[ECO "B00"]
[WhiteElo "1938"]
[BlackElo "1700"]
[Annotator "TA"]
[PlyCount "135"]
[EventDate "2022.06.05"]
[EventType "swiss"]
[EventRounds "9"]
[EventCountry "GER"]
[SourceTitle "playchess.com"]
[Source "ChessBase"]
[SourceQuality "1"]
[TimeControl "40/4500+30:900+30"]

{[%evp 9,134,-28,-26,-78,-37,-41,-45,-58,50,52,67,71,68,27,48,-2,54,0,2,-21,-18,-26,-16,-38,-4,-37,-1,-50,-41,-45,-42,-65,-7,-102,-26,-25,24,21,27,41,31,7,0,0,60,0,0,-66,-44,-108,15,0,0,-77,-80,-95,-60,-80,0,0,0,0,0,0,0,0,135,99,68,0,0,8,54,41,83,0,270,291,278,0,97,0,266,240,203,205,309,172,247,215,976,941,728,-9,-9,-33,0,-233,-232,-226,-187,-199,-208,-212,-198,-221,-183,-225,0,0,0,0,29989,29990,29990,29991,29996,29997,29997,29998,29998,29997,29997,29996,29998,29999,29999]} 1. e4 {[%emt 0:00:00]} Nc6 {[%emt 0:00:00]} 2. Nf3 {[%emt 0:00:00]} f5 {[%emt 0:00:00]} 3. d3 {[%emt 0:00:00]} e5 {[%emt 0:00:00]} 4. Bg5 {[%emt 0:11:30]} Nf6 {[%emt 0:00:00]} 5. Nc3 {[%emt 0:02:07]} Bb4 {[%emt 0:00:00]} 6. Qd2 {[%emt 0:02:38] C40: Latvian and Elephant Gambits.} (6. exf5 $11 d5 7. Be2) 6... h6 {[%emt 0:00:00]} 7. Bxf6 {[%emt 0:00:05]} Qxf6 {[%emt 0:00:00]} 8. a3 {[%emt 0:00:08] Black is slightly better.} Ba5 {[%emt 0:00:54]} (8... Bxc3 $15 9. Qxc3 d6) 9. b4 $1 $14 {[%emt 0:06:38]} Bb6 {[%emt 0:00:44]} 10. Nd5 {[%emt 0:00:12] [#]} Qd8 $146 {[%emt 0:11:22]} ({Predecessor:} 10... Qf7 11. Nxb6 axb6 12. Nh4 fxe4 13. dxe4 O-O 14. c4 d6 15. Rc1 Nd4 16. Rc3 Qf4 17. Qxf4 Rxf4 {0-1 (31) Pedote,P (1318)-Van Riemsdijk,F (1735) Sao Paulo 2016}) 11. Be2 {[%emt 0:06:39] White is more active.} (11. Nxb6 axb6 12. b5 (12. exf5 d6 $15) 12... Na7 $11) (11. a4 $5 {[%cal Ra4a5]} a6 12. exf5 $14 (12. Nxb6 cxb6 13. Be2 d6 $11)) 11... d6 {[%emt 0:02:45]} 12. O-O {[%emt 0:01:57]} (12. Nxb6 axb6 13. a4 O-O $15) (12. a4 $14) 12... Be6 {[%emt 0:05:30]} (12... Ne7 $11) 13. Nxb6 {[%emt 0:00:54]} (13. a4 $1 $14 a6 14. Nxb6 cxb6 15. exf5 Bxf5 16. b5) 13... axb6 $11 {[%emt 0:00:37]} 14. Ne1 {[%emt 0:00:53]} f4 {[%emt 0:03:57]} 15. Bh5+ {[%emt 0:14:34]} Kd7 {[%emt 0:00:45]} 16. c3 {[%emt 0:03:09]} Qf6 {[%emt 0:07:06]} 17. Qd1 {[%emt 0:00:49][%cal Od3d4]} g5 {[%emt 0:01:37]} (17... g6 $5 {[%cal Rg6h5]} 18. Be2 g5 $11) 18. Bg4 {[%emt 0:00:23]} (18. d4 $11 exd4 19. b5) 18... h5 $15 {[%emt 0:01:41]} 19. Bxe6+ {[%emt 0:00:04]} Qxe6 {[%emt 0:01:12]} 20. Nf3 {[%emt 0:08:01]} Rag8 {[%emt 0:03:47]} ({Black should play} 20... Qf6 $15) 21. Re1 {[%emt 0:03:19]} (21. d4 $11 {remains equal.} Qe8 22. d5) 21... g4 {[%emt 0:05:10]} (21... Nd8 $17) 22. Nh4 $1 $11 {[%emt 0:00:05]} g3 {[%emt 0:01:21]} (22... Qf6 {deserves consideration.} 23. g3 Rf8) 23. fxg3 $1 {[%emt 0:00:29]} fxg3 {[%emt 0:01:01]} 24. h3 $1 {[%emt 0:00:18]} Qf6 {[%emt 0:02:48]} 25. Nf5 {[%emt 0:00:27]} Ne7 $36 {[%emt 0:01:45][%mdl 2048] Black has the initiative.} 26. Rf1 {[%emt 0:01:14]} Qg5 {[%emt 0:05:08]} (26... Nxf5 $11 27. Qa4+ Kc8) 27. Qe2 {[%emt 0:06:48]} ({Better is} 27. Qa4+ $14 c6 28. b5) 27... Rf8 {[%emt 0:01:55][%cal Re7f5]} 28. Nxe7 {[%emt 0:00:12]} (28. Ne3 $11) 28... Kxe7 $15 {[%emt 0:00:39]} 29. Rae1 {[%emt 0:00:31]} (29. a4 $15) 29... Qg7 {[%emt 0:05:02]} (29... b5 $1 $17) 30. Qe3 {[%emt 0:01:29]} h4 {[%emt 0:02:03]} 31. Rd1 {[%emt 0:02:33]} (31. Rf5 $11) 31... Rxf1+ $17 {[%emt 0:02:24]} 32. Rxf1 {[%emt 0:00:06][%mdl 4096] Endgame KQR-KQR} Rf8 {[%emt 0:00:15] Inhibits Qf3.} (32... Ra8 {is interesting.} 33. b5 Rxa3 34. Qf3 Rxc3 35. Qh5 Rb3) 33. a4 {[%emt 0:04:54]} Rxf1+ {[%emt 0:03:49]} (33... Kd7 $17) 34. Kxf1 {[%emt 0:00:05] KQ-KQ} Qf7+ {[%emt 0:00:16]} 35. Ke2 {[%emt 0:00:58]} Qa2+ {[%emt 0:01:21]} 36. Kf3 {[%emt 0:00:31]} Kf7 {[%emt 0:02:30]} 37. Qe2 {[%emt 0:06:59]} Qxa4 {[%emt 0:04:02]} (37... Qe6 $11) 38. Kg4 $1 $16 {[%emt 0:00:14]} Qa1 {[%emt 0:02:14]} 39. Kxh4 {[%emt 0:01:11]} (39. c4 $1 $14) 39... Qxc3 $11 {[%emt 0:00:47]} 40. Qf3+ {[%emt 0:01:18]} Ke8 {[%emt 0:02:01]} 41. Qxg3 {[%emt 0:15:56]} Qxb4 {[%emt 0:17:08]} 42. Qg8+ {[%emt 0:00:33]} (42. Qg6+ $16 Kd7 43. Qf7+ Kd8 44. Qf8+ (44. Qg8+ Ke7 $11) 44... Kd7 45. Qf7+ Kd8 46. g4 (46. Qg8+ Ke7 $11)) 42... Kd7 $2 {[%emt 0:01:11][%mdl 8192]} (42... Ke7 $1 $11) 43. Qf7+ $18 {[%emt 0:00:12]} Kc6 {[%emt 0:01:45]} 44. Qd5+ $2 {[%emt 0:00:06]} (44. g4 $1 $18 {[%cal Rg4g5] and the rest is easy.}) 44... Kd7 $16 {[%emt 0:00:14] [#]} 45. Qf7+ $2 {[%emt 0:00:00]} (45. g4 $1 $16) 45... Kc6 $18 {[%emt 0:00:00] [#]} 46. g4 $1 {[%emt 0:00:00] And now g5 would win.} Qe1+ {[%emt 0:00:00]} 47. Kh5 {[%emt 0:00:00][%mdl 1024] Black must now prevent g5. White has strong compensation.} Qd1 {[%emt 0:00:00]} (47... b5 $142) 48. Qd5+ {[%emt 0:00:00]} Kd7 {[%emt 0:00:00]} 49. Kg6 {[%emt 0:00:00]} Qh1 $2 {[%emt 0:00:00]} (49... Qe1 50. Qf7+ Kc6) 50. Qf7+ {[%emt 0:00:00]} Kc6 {[%emt 0:00:00]} 51. Qh7 $2 {[%emt 0:00:00]} (51. Qc4+ $18 Kd7 52. Qf7+ Kc6 53. Qd5+ Kd7 54. g5) 51... b5 $11 {[%emt 0:00:00]} 52. g5 {[%emt 0:00:00]} b4 {[%emt 0:00:00] ...Qf1 is the strong threat.} 53. Kf6 $2 {[%emt 0:00:00]} (53. Qg8 $11 {and White has nothing to worry.}) 53... b3 $19 {[%emt 0:00:00]} 54. g6 {[%emt 0:00:00]} Qf3+ {[%emt 0:00:00]} 55. Ke7 {[%emt 0:00:00] Strongly threatening g7.} b2 {[%emt 0:00:00]} ({Not} 55... Qxd3 56. Kd8 Qxe4 57. Qxc7+ Kb5 58. Qd7+ Kc5 59. Qc7+ Kb5 60. Qd7+ Qc6 61. Qf7 Qb6+ 62. Ke7 $17) 56. g7 {[%emt 0:00:00]} b1=Q {[%emt 0:00:00]} (56... Qxd3 57. g8=Q b1=Q 58. Kd8 Qxe4 59. Qxc7+ Kb5 60. Qxd6 $15) 57. g8=Q {[%emt 0:00:00] aiming for Kd8.} Qbxd3 {[%emt 0:00:00]} 58. Kd8 {[%emt 0:00:00]} Qf6+ $2 {[%emt 0:00:00]} ({Black should try} 58... Qfxe4 $19 59. Qxc7+ Kb5) 59. Kc8 $11 {[%emt 0:00:00]} Kb5 {[%emt 0:04:24] Hoping for ...Kb4.} 60. Qxc7 {[%emt 0:02:27] Really sharp!} Qxh3+ $2 {[%emt 0:01:43][%mdl 8192]} (60... Qf2 $11) 61. Kxb7 {[%emt 0:00:10][%csl Gc7][%cal Rg8c4] White mates.} Qfe6 {[%emt 0:04:00]} 62. Qa8 {[%emt 0:04:09][%csl Gc7][%cal Ra8a5]} ({Inferior is} 62. Qb6+ Kc4 63. Qc6+ (63. Qf8 Qd7+ 64. Qc7+ Qxc7+ 65. Kxc7 Qa3 $17) 63... Kd3 64. Qd5+ Qxd5+ 65. Qxd5+ Kc3 66. Qa5+ Kc4 67. Qd5+ Kc3 68. Qa5+ Kc4 69. Qd5+ Kc3 $11) 62... Kb4 {[%emt 0:01:15]} 63. Qaa5+ {[%emt 0:00:45]} Kb3 {[%emt 0:00:13]} 64. Qb5+ {[%emt 0:00:30]} Ka2 {[%emt 0:00:12]} 65. Qca5+ {[%emt 0:00:08]} Qa3 {[%emt 0:00:15]} 66. Qe2+ {[%emt 0:00:10]} Kb3 {[%emt 0:00:37]} 67. Qd3+ {[%emt 0:00:13]} Kb2 {[%emt 0:00:32]} 68. Qaxa3# {[%emt 0:00:07] Weighted Error Value: White=0.43/Black=0.55} 1-0

[Event "GER-ch Youth-U18w 2022"]
[Site "Willingen"]
[Date "2022.06.07"]
[Round "4.9"]
[White "Sokyrko, Sofiia"]
[Black "Dartmann Aubanell, Catriona"]
[Result "0-1"]
[ECO "C00"]
[WhiteElo "1368"]
[BlackElo "1874"]
[Annotator "NA RC COMBH"]
[PlyCount "72"]
[EventDate "2022.06.05"]
[EventType "swiss"]
[EventRounds "9"]
[EventCountry "GER"]
[SourceTitle "playchess.com"]
[Source "ChessBase"]
[SourceQuality "1"]
[TimeControl "40/4500+30:900+30"]

1. e4 {[%emt 0:00:00]} e6 {[%emt 0:00:00]} 2. Nf3 {[%emt 0:00:00]} d5 {[%emt 0:00:00]} 3. e5 {[%emt 0:00:00]} c5 {[%emt 0:00:00]} 4. b4 {[%emt 0:00:00]} cxb4 {[%emt 0:00:00]} 5. d4 {[%emt 0:00:00]} Nc6 {[%emt 0:00:00]} 6. a3 {[%emt 0:00:00]} Bd7 {[%emt 0:00:00]} 7. axb4 {[%emt 0:00:00]} Bxb4+ {[%emt 0:00:00]} 8. c3 {[%emt 0:00:00]} Be7 {[%emt 0:00:00]} 9. Bd3 {[%emt 0:00:00]} a6 {[%emt 0:10:05]} 10. Na3 {[%emt 0:00:00]} b5 {[%emt 0:05:38]} 11. Nc2 {[%emt 0:06:03]} Na5 {[%emt 0:08:44]} 12. Ne3 {[%emt 0:10:47]} Qb6 {[%emt 0:09:20]} 13. O-O {[%emt 0:25:08]} Nh6 {[%emt 0:06:30]} 14. Ba3 {[%emt 0:02:33]} Bxa3 {[%emt 0:03:02]} 15. Rxa3 {[%emt 0:01:13]} Nc4 {[%emt 0:02:12]} 16. Ra1 {[%emt 0:02:07]} Rc8 {[%emt 0:02:08]} 17. Nxc4 {[%emt 0:04:04]} ({White should try} 17. Bxc4 $14 bxc4 18. Ng5) 17... dxc4 {[%emt 0:00:27]} 18. Bc2 {[%emt 0:00:27]} a5 {[%emt 0:15:02]} 19. Ng5 {[%emt 0:05:02]} b4 {[%emt 0:03:04]} 20. Ne4 {[%emt 0:01:45]} O-O {[%emt 0:05:41]} 21. Nf6+ $2 {[%emt 0:01:51]} gxf6 {[%emt 0:05:15]} 22. exf6 {[%emt 0:00:10]} Qd8 {[%emt 0:04:15]} 23. Qf3 {[%emt 0:00:27]} Kh8 {[%emt 0:01:53]} 24. Qf4 {[%emt 0:01:00]} Nf5 {[%emt 0:00:48]} 25. g4 {[%emt 0:01:01]} Rg8 {[%emt 0:00:04]} 26. Kh1 {[%emt 0:00:11]} Qxf6 {[%emt 0:02:10]} 27. gxf5 {[%emt 0:00:21]} b3 {[%emt 0:00:22]} 28. Bb1 {[%emt 0:00:57]} a4 {[%emt 0:00:31]} 29. Qd6 {[%emt 0:10:41]} Bc6+ {[%emt 0:01:01]} 30. f3 {[%emt 0:00:06]} Qg7 {[%emt 0:00:44]} 31. Qe5 Qxe5 {[%emt 0:00:04]} 32. dxe5 {[%emt 0:01:21]} Ra8 {[%emt 0:00:20]} 33. fxe6 {[%emt 0:00:25]} fxe6 {[%emt 0:00:08]} 34. Be4 {[%emt 0:01:14]} Bxe4 {[%emt 0:00:23]} 35. fxe4 {[%emt 0:00:06]} a3 {[%emt 0:00:21]} 36. Rfb1 $19 {[%emt 0:02:43]} Rgd8 {[%emt 0:01:19]} 0-1

[Event "GER-ch Youth-U18w 2022"]
[Site "Willingen"]
[Date "2022.06.07"]
[Round "4.10"]
[White "Kosak, Karolina"]
[Black "Jacoby, Angelina"]
[Result "1/2-1/2"]
[ECO "B01"]
[WhiteElo "1471"]
[BlackElo "1535"]
[Annotator "NA RC COMBH"]
[PlyCount "42"]
[EventDate "2022.06.05"]
[EventType "swiss"]
[EventRounds "9"]
[EventCountry "GER"]
[SourceTitle "playchess.com"]
[Source "ChessBase"]
[SourceQuality "1"]
[TimeControl "40/4500+30:900+30"]

1. e4 {[%emt 0:00:00]} d5 {[%emt 0:00:00]} 2. exd5 {[%emt 0:00:00]} Qxd5 {[%emt 0:00:00]} 3. Nc3 {[%emt 0:00:00]} Qd8 {[%emt 0:00:00]} 4. d4 {[%emt 0:00:00]} Nf6 {[%emt 0:00:00]} 5. Nf3 {[%emt 0:00:00]} Bg4 {[%emt 0:00:00]} 6. h3 {[%emt 0:00:00]} Bxf3 {[%emt 0:00:00]} 7. Qxf3 {[%emt 0:00:00]} c6 {[%emt 0:00:00]} 8. Be3 {[%emt 0:00:00]} e6 {[%emt 0:00:00]} 9. Bd3 {[%emt 0:00:00]} Nbd7 {[%emt 0:00:00]} 10. O-O {[%emt 0:00:00]} Be7 {[%emt 0:00:00]} 11. Ne4 {[%emt 0:00:00]} Nxe4 {[%emt 0:00:00]} 12. Bxe4 {[%emt 0:00:00]} Nf6 {[%emt 0:00:00]} 13. Bd3 {[%emt 0:00:00]} O-O {[%emt 0:00:00]} 14. Rfd1 {[%emt 0:00:00]} Qd5 {[%emt 0:02:43]} 15. Qxd5 {[%emt 0:04:45]} Nxd5 {[%emt 0:12:34]} 16. Be4 {[%emt 0:30:28]} Rfd8 {[%emt 0:04:18]} 17. c4 {[%emt 0:13:24]} Nc7 {[%emt 0:10:54]} 18. Bf4 {[%emt 0:04:46]} Rac8 {[%emt 0:12:46]} 19. Bxc7 {[%emt 0:02:46]} Rxc7 {[%emt 0:00:24]} 20. Rd2 {[%emt 0:04:53]} Rcd7 {[%emt 0:03:00]} 21. Rad1 {[%emt 0:00:36]} Bf6 {[%emt 0:03:23]} 1/2-1/2

[Event "GER-ch Youth-U18w 2022"]
[Site "Willingen"]
[Date "2022.06.07"]
[Round "4.11"]
[White "Mueller, Sophie Charlotte"]
[Black "Kieckbusch, Lotta"]
[Result "1/2-1/2"]
[ECO "D35"]
[WhiteElo "1509"]
[BlackElo "1207"]
[Annotator "NA RC COMBH"]
[PlyCount "63"]
[EventDate "2022.06.05"]
[EventType "swiss"]
[EventRounds "9"]
[EventCountry "GER"]
[SourceTitle "playchess.com"]
[Source "ChessBase"]
[SourceQuality "1"]
[TimeControl "40/4500+30:900+30"]

1. d4 {[%emt 0:00:00]} d5 {[%emt 0:00:00]} 2. c4 {[%emt 0:00:00]} Nf6 {[%emt 0:00:00]} 3. Nc3 {[%emt 0:00:00]} e6 {[%emt 0:00:00]} 4. cxd5 {[%emt 0:00:00]} exd5 {[%emt 0:00:00]} 5. Bg5 {[%emt 0:00:00]} c6 {[%emt 0:00:00]} 6. e3 {[%emt 0:00:00]} Be7 {[%emt 0:00:00]} 7. Nf3 {[%emt 0:00:00]} Bg4 {[%emt 0:02:11]} 8. Be2 {[%emt 0:00:00]} O-O {[%emt 0:01:07]} 9. O-O {[%emt 0:00:00]} Nbd7 {[%emt 0:02:16]} 10. Qc2 {[%emt 0:00:00]} Re8 {[%emt 0:03:26]} 11. Rae1 {[%emt 0:00:00]} Rc8 {[%emt 0:05:33]} 12. Qb3 {[%emt 0:11:10]} Qb6 {[%emt 0:05:44]} 13. Qxb6 {[%emt 0:02:08]} Nxb6 {[%emt 0:00:47]} 14. Ne5 {[%emt 0:04:24]} Bxe2 {[%emt 0:01:50]} 15. Rxe2 {[%emt 0:03:10]} Nfd7 {[%emt 0:03:23]} 16. Bxe7 {[%emt 0:02:34]} Rxe7 {[%emt 0:00:43]} 17. Nd3 {[%emt 0:00:59]} Rce8 {[%emt 0:02:19]} 18. Rfe1 {[%emt 0:02:21]} Nc4 {[%emt 0:04:55]} 19. b3 {[%emt 0:01:11]} Nd6 {[%emt 0:00:34]} 20. f3 {[%emt 0:13:13]} Nf5 {[%emt 0:02:20]} 21. Kf2 {[%emt 0:02:52]} Kf8 {[%emt 0:07:32]} 22. g4 {[%emt 0:05:22]} Nd6 {[%emt 0:04:33]} 23. e4 {[%emt 0:03:38]} dxe4 {[%emt 0:02:10]} 24. fxe4 {[%emt 0:00:57]} b6 {[%emt 0:14:45]} 25. d5 {[%emt 0:06:18]} cxd5 {[%emt 0:01:11]} 26. e5 {[%emt 0:03:31]} Ne4+ {[%emt 0:01:28]} 27. Nxe4 {[%emt 0:00:11]} dxe4 {[%emt 0:00:02]} 28. Rxe4 {[%emt 0:00:26]} Nf6 {[%emt 0:02:52]} 29. Ra4 {[%emt 0:14:02]} Nd5 {[%emt 0:00:57]} 30. Rc4 {[%emt 0:01:07]} f6 {[%emt 0:04:50]} 31. exf6 {[%emt 0:02:15]} Nxf6 {[%emt 0:01:05]} 32. Rxe7 {[%emt 0:02:33]} 1/2-1/2

[Event "GER-ch Youth-U18w 2022"]
[Site "Willingen"]
[Date "2022.06.08"]
[Round "5.1"]
[White "Bardorz, Jana"]
[Black "Rudolph, Eva"]
[Result "1/2-1/2"]
[ECO "B42"]
[WhiteElo "1974"]
[BlackElo "1860"]
[Annotator "TA"]
[PlyCount "62"]
[EventDate "2022.06.05"]
[EventType "swiss"]
[EventRounds "9"]
[EventCountry "GER"]
[SourceTitle "playchess.com"]
[Source "ChessBase"]
[SourceQuality "1"]
[TimeControl "40/4500+30:900+30"]

{[%evp 21,62,59,58,55,68,39,36,10,68,50,62,0,0,10,3,-109,-116,-116,-122,-121,-116,-165,-154,-186,-159,-114,-117,-318,-316,-298,-113,-80,0,0,0,0,10,17,11,6,5,0,0]} 1. e4 {[%emt 0:00:00]} c5 {[%emt 0:00:00]} 2. Nf3 {[%emt 0:00:00]} e6 {[%emt 0:00:00]} 3. d4 {[%emt 0:00:00]} cxd4 {[%emt 0:00:00]} 4. Nxd4 {[%emt 0:00:00]} a6 {[%emt 0:00:00]} 5. Bd3 {[%emt 0:00:00]} Nf6 {[%emt 0:00:00]} 6. O-O {[%emt 0:00:00]} Qc7 {[%emt 0:00:00]} 7. Qe2 {[%emt 0:00:00]} d6 {[%emt 0:00:00]} 8. c4 {[%emt 0:00:00]} g6 {[%emt 0:00:00]} 9. Nc3 {[%emt 0:00:00]} Bg7 {[%emt 0:00:00]} 10. Be3 {[%emt 0:00:00]} O-O {[%emt 0:00:00]} 11. Rac1 {[%emt 0:00:00]} Nbd7 {[%emt 0:00:00]} 12. Rfd1 {[%emt 0:00:00] B42: Sicilian: Kan Variation: 5 Bd3.} b6 {[%emt 0:01:26]} 13. b4 {[%emt 0:00:00] White is much more active. The black rooks are badly placed.} Ne5 {[%emt 0:10:48]} 14. f3 {[%emt 0:04:38] [#] Prevents Nfg4. White is slightly better.} Rd8 $146 {[%emt 0:11:25]} ({Better is} 14... Bd7 $11) ({Predecessor:} 14... Bd7 15. Nb3 Rfb8 16. Qf2 Be8 {½-½ (16) Jezov,R (2235)-Neiksans,A (2571) Liepaja 2014}) 15. Nb3 {[%emt 0:02:05]} (15. Na4 $5 {[%cal Ra4b6]}) 15... Bd7 {[%emt 0:05:26]} 16. Bf4 {[%emt 0:12:53]} (16. Qf2 $14) 16... Nh5 $11 {[%emt 0:06:16]} 17. Bg5 {[%emt 0:00:48]} Rdc8 {[%emt 0:00:49][%cal Re5c4,Bd8c8,Bc8b8,Bb8b4][%mdl 32]} 18. c5 {[%emt 0:08:28]} (18. Nb1 $11) 18... bxc5 $17 {[%emt 0:17:38]} 19. bxc5 {[%emt 0:06:45]} dxc5 {[%emt 0:04:47][%cal Bd6c5,Bc5c4][%mdl 32]} 20. Bxa6 {[%emt 0:02:26]} Rcb8 {[%emt 0:09:09] Hoping for ...c4.} 21. Bc4 {[%emt 0:01:50]} (21. Nb1 $17) 21... Rb4 $1 $19 {[%emt 0:02:17]} 22. Bb5 {[%emt 0:10:27]} (22. Nb5 Bxb5 23. Bxb5 c4 24. Bxc4 Nxc4) (22. Nb5 $2 Bxb5 23. Bxb5 c4 24. Bxc4 Nxc4 $19) 22... Bxb5 {[%emt 0:01:08]} 23. Nxb5 {[%emt 0:00:17]} Qb6 {[%emt 0:00:54] aiming for ...c4+.} 24. Nd6 {[%emt 0:04:01]} (24. Nc3) (24. Nc3 $17) 24... c4+ {[%emt 0:07:09]} 25. Be3 {[%emt 0:00:24] [#]} Qa6 {[%emt 0:00:07]} (25... Rxa2 $3 $19 {[%mdl 512] has better winning chances.} 26. Bxb6 (26. Nxc4 Nxc4) 26... Rxe2 27. Nxc4 Nxc4 28. Rd8+ (28. Bc5 $2 Rxb3 29. Rd8+ Bf8 $19) 28... Bf8) 26. Nc5 {[%emt 0:10:34] [#]} Qxa2 {[%emt 0:00:14]} (26... Qa3 $1 $17 {Threatens to win with ...Rb2.} 27. Qe1 c3) 27. Qxa2 $11 {[%emt 0:04:51] The position is equal.} Rxa2 {[%emt 0:00:03]} 28. Nxc4 {[%emt 0:02:08]} Ra8 {[%emt 0:03:11] Prevents Rd8+.} (28... Nxc4 {is a self mate.} 29. Rd8+ Bf8 30. Bh6) 29. Nxe5 {[%emt 0:01:40]} Bxe5 {[%emt 0:00:05]} 30. Nd3 {[%emt 0:01:42]} Bd4 {[%emt 0:01:12]} 31. Bxd4 {[%emt 0:01:48]} Rxd4 {[%emt 0:00:09] White happily takes the draw.  Weighted Error Value: White=0.33/Black=0.24 (precise)} 1/2-1/2

[Event "GER-ch Youth-U18w 2022"]
[Site "Willingen"]
[Date "2022.06.08"]
[Round "5.2"]
[White "Dietz, Kristin"]
[Black "Heutling, Elina"]
[Result "1-0"]
[ECO "B90"]
[WhiteElo "1707"]
[BlackElo "1798"]
[Annotator "NA RC COMBH"]
[PlyCount "99"]
[EventDate "2022.06.05"]
[EventType "swiss"]
[EventRounds "9"]
[EventCountry "GER"]
[SourceTitle "playchess.com"]
[Source "ChessBase"]
[SourceQuality "1"]
[TimeControl "40/4500+30:900+30"]

1. e4 {[%emt 0:00:00]} c5 {[%emt 0:00:00]} 2. Nf3 {[%emt 0:00:00]} d6 {[%emt 0:00:00]} 3. d4 {[%emt 0:00:00]} cxd4 {[%emt 0:00:00]} 4. Nxd4 {[%emt 0:00:00]} Nf6 {[%emt 0:00:00]} 5. Nc3 {[%emt 0:00:00]} a6 {[%emt 0:00:00]} 6. Be3 {[%emt 0:00:00]} e5 {[%emt 0:00:00]} 7. Nf3 Be7 {[%emt 0:00:00]} 8. Bc4 {[%emt 0:00:00]} O-O {[%emt 0:00:00]} 9. O-O {[%emt 0:00:00]} Nc6 {[%emt 0:00:00]} 10. a4 {[%emt 0:00:00]} h6 {[%emt 0:00:00]} 11. Qe2 {[%emt 0:08:53]} Nb4 {[%emt 0:03:30]} 12. a5 {[%emt 0:04:53]} Be6 {[%emt 0:14:40]} 13. Ra4 {[%emt 0:16:42]} Bxc4 {[%emt 0:11:34]} 14. Qxc4 {[%emt 0:00:10]} Nc6 {[%emt 0:00:21]} 15. b4 {[%emt 0:03:44]} Rc8 {[%emt 0:04:16]} 16. Qb3 {[%emt 0:02:18]} Qe8 {[%emt 0:08:23]} 17. b5 {[%emt 0:06:00]} Nb8 {[%emt 0:02:43]} 18. Rd1 {[%emt 0:13:29]} Nbd7 {[%emt 0:16:18]} 19. Nd2 {[%emt 0:08:20]} Nc5 20. Bxc5 {[%emt 0:00:07]} Rxc5 {[%emt 0:01:53]} 21. Rc4 {[%emt 0:03:31]} Qc8 {[%emt 0:06:44]} 22. Nd5 {[%emt 0:04:53]} Nxd5 {[%emt 0:01:05]} 23. exd5 {[%emt 0:00:23]} axb5 {[%emt 0:02:02]} 24. Rxc5 {[%emt 0:00:10]} Qxc5 {[%emt 0:00:29]} 25. Rb1 Rc8 {[%emt 0:07:56]} 26. Qxb5 {[%emt 0:05:29]} Qxb5 {[%emt 0:03:06]} 27. Rxb5 {[%emt 0:00:02]} Rxc2 {[%emt 0:00:08]} 28. Nb3 {[%emt 0:00:21]} Rc7 {[%emt 0:01:41]} 29. Kf1 {[%emt 0:00:54]} Kf8 {[%emt 0:00:38]} 30. a6 {[%emt 0:00:17]} bxa6 {[%emt 0:00:43]} 31. Rb8+ {[%emt 0:00:05]} Bd8 {[%emt 0:00:04]} 32. Rxd8+ {[%emt 0:00:06]} Ke7 {[%emt 0:00:02]} 33. Ra8 {[%emt 0:00:13]} Rc3 {[%emt 0:01:10]} 34. Na5 {[%emt 0:00:47]} Rc5 {[%emt 0:00:17]} 35. Rxa6 {[%emt 0:00:19]} Rxd5 {[%emt 0:00:18]} 36. Ra7+ {[%emt 0:00:59]} Ke6 {[%emt 0:01:25]} 37. Nc6 {[%emt 0:00:20]} f5 {[%emt 0:01:23]} 38. Rxg7 {[%emt 0:00:29]} Kf6 {[%emt 0:00:06]} 39. Rg6+ {[%emt 0:00:42]} Kxg6 {[%emt 0:00:06]} 40. Ne7+ {[%emt 0:00:03]} Kf6 {[%emt 0:00:30]} 41. Nxd5+ {[%emt 0:15:05]} Ke6 {[%emt 0:15:07]} 42. Ne3 {[%emt 0:00:19]} h5 {[%emt 0:00:22]} 43. Ke2 {[%emt 0:00:13]} f4 {[%emt 0:00:57]} 44. Nc2 {[%emt 0:01:32]} h4 {[%emt 0:00:00]} 45. h3 {[%emt 0:00:00]} d5 {[%emt 0:00:00]} 46. Kd3 {[%emt 0:00:00]} Kf5 {[%emt 0:00:00]} 47. Nb4 {[%emt 0:00:00]} e4+ {[%emt 0:00:00]} 48. Kd4 {[%emt 0:00:00]} f3 {[%emt 0:00:00]} 49. g4+ {[%emt 0:00:00]} hxg3 {[%emt 0:00:00]} 50. fxg3 {[%emt 0:00:00]} 1-0